bitfinex-derivatives/quotes_ETHF0:USTF0_20241005
["timestamp","ask_amount","ask_price","bid_price","bid_amount"]
[1728144367913,4.83644194,2413.6,2413.5,12.52005486]
[1728144368211,4.29337837,2413.6,2413.5,12.52005486]
[1728144369302,4.83644194,2413.6,2413.5,12.52005486]
[1728144369911,4.29340775,2413.6,2413.5,12.52005486]
[1728144370107,1.08560775,2413.7,2413.5,27.85704134]
[1728144370310,4.29340775,2413.9,2413.8,0.28998]
[1728144370818,4.29340775,2413.9,2413.8,1.32183344]
[1728144371209,4.29340775,2413.9,2413.8,2.17443344]
[1728144372021,1.08560775,2413.9,2413.8,2.17443344]
[1728144372615,1.62864194,2413.9,2413.8,2.17443344]
[1728144373000,1.08552767,2413.9,2413.8,2.17443344]
[1728144373707,1.08552767,2413.9,2413.8,1.66505034]
[1728144373909,1.08552767,2413.9,2413.8,2.17434361]
[1728144374117,1.08552767,2413.9,2413.8,1.14258]
[1728144374504,1.08552767,2413.9,2413.8,1.94698]
[1728144374814,1.08552767,2413.9,2413.8,2.97875039]
[1728144377104,1.08552767,2413.9,2413.8,2.45627623]
[1728144377311,1.08552767,2413.9,2413.8,1.94698]
[1728144377513,1.08552767,2413.9,2413.8,2.46947862]
[1728144377713,1.08552767,2413.9,2413.8,2.97880714]
[1728144378421,1.62864194,2414.0,2413.9,0.28997]
[1728144378616,4.46327717,2414.1,2413.9,0.50932852]
[1728144378919,4.46327717,2414.1,2413.8,1.657]
[1728144378920,1.6415,2414.0,2413.8,1.94697]
[1728144379121,1.62849842,2413.9,2413.8,1.94697]
[1728144379327,1.62849842,2413.9,2413.8,2.97935869]
[1728144380715,1.62849842,2413.9,2413.8,1.657]
[1728144380910,1.62849842,2413.9,2413.8,2.17980762]
[1728144381305,1.62849842,2413.9,2413.8,2.97940763]
[1728144381513,1.62849842,2413.9,2413.8,2.68942763]
[1728144381716,1.91846842,2413.9,2413.8,2.68942763]
[1728144381915,1.62849842,2413.9,2413.8,2.68942763]
[1728144382323,1.62849842,2413.9,2413.8,2.97940763]
[1728144383007,5.6324,2413.9,2413.5,0.29001]
[1728144383212,1.91870576,2413.6,2413.3,2.05843]
[1728144383408,3.48577283,2413.5,2413.4,2.13890079]
[1728144383614,3.48577283,2413.5,2413.4,6.65823082]
[1728144383817,3.48577283,2413.5,2413.4,5.33247106]
[1728144384014,2.3999,2413.5,2413.4,5.33247106]
[1728144384318,3.48576257,2413.5,2413.4,6.65829342]
[1728144384524,3.48573544,2413.5,2413.4,6.65829342]
[1728144385021,3.48573544,2413.5,2413.4,7.16821678]
[1728144386919,3.48573544,2413.5,2413.4,5.84241189]
[1728144387123,3.48573544,2413.5,2413.4,5.33248853]
[1728144387322,3.48573544,2413.5,2413.4,5.84237815]
[1728144390226,3.48573544,2413.5,2413.4,5.55234815]
[1728144390427,3.48562802,2413.5,2413.4,5.55234815]
[1728144390616,2.3999,2413.5,2413.4,5.55234815]
[1728144390818,4.02859576,2413.5,2413.4,5.55234815]
[1728144391317,4.02859576,2413.5,2413.4,5.02921965]
[1728144393219,5.51859576,2413.5,2413.4,5.02921965]
[1728144393721,5.51859576,2413.5,2413.4,4.51933003]
[1728144394124,5.51859576,2413.5,2413.4,5.02915556]
[1728144394724,5.51859576,2413.5,2413.4,0.50982553]
[1728144395328,5.51859576,2413.5,2413.3,0.29003]
[1728144395530,1.08558234,2413.4,2413.3,0.29003]
[1728144395833,1.08558234,2413.4,2413.3,0.8130305]
[1728144396028,1.08558234,2413.4,2413.3,1.32283258]
[1728144396225,6.07341234,2413.4,2413.3,1.03280258]
[1728144396437,6.61652576,2413.4,2413.3,0.50980208]
[1728144396728,4.98783,2413.4,2413.1,0.29006]
[1728144396917,1.08555027,2413.2,2413.1,0.29006]
[1728144397226,1.08555027,2413.2,2413.1,5.47732149]
[1728144397428,3.37165027,2413.2,2413.1,5.9871373]
[1728144399123,3.37165027,2413.2,2413.1,5.46405388]
[1728144399526,4.18595027,2413.2,2413.1,5.46405388]
[1728144399723,4.18595027,2413.2,2413.1,5.17399388]
[1728144399929,4.18595027,2413.2,2413.0,1.87897]
[1728144400426,3.50997568,2413.2,2413.0,1.5889]
[1728144400631,3.50997568,2413.2,2413.1,4.65680511]
[1728144400632,1.88165027,2413.2,2413.1,4.65680511]
[1728144401128,1.88165027,2413.2,2413.1,4.36674511]
[1728144403737,3.66170027,2413.2,2413.1,4.36674511]
[1728144403935,5.03847541,2413.2,2413.1,4.36674511]
[1728144404328,5.03847541,2413.2,2413.0,1.5889]
[1728144404528,4.49484744,2413.2,2413.0,1.5889]
[1728144404834,1.86539744,2413.1,2413.0,1.5889]
[1728144405031,2.15545744,2413.1,2412.8,3.49789]
[1728144405436,2.15545744,2413.1,2413.0,4.40317211]
[1728144405736,2.15545744,2413.1,2412.8,3.49789]
[1728144406135,2.15545744,2413.1,2412.9,4.48878819]
[1728144407135,1.86539744,2413.1,2412.9,4.48878819]
[1728144407335,1.86539744,2413.1,2412.9,4.77887819]
[1728144408229,1.86539744,2413.1,2412.9,4.48878819]
[1728144409827,2.15545744,2413.1,2412.9,4.48878819]
[1728144410431,1.86539744,2413.1,2412.9,4.48878819]
[1728144411469,1.49,2413.0,2412.9,4.48878819]
[1728144414139,1.78008,2413.0,2412.9,4.48878819]
[1728144414340,1.49,2413.0,2412.9,4.48878819]
[1728144414529,1.49,2413.0,2412.8,4.78556466]
[1728144414726,0.823,2412.9,2412.8,0.2901]
[1728144415134,0.823,2412.9,2412.8,4.856361]
[1728144415334,0.823,2412.9,2412.8,4.566261]
[1728144416331,2.313,2412.9,2412.8,4.566261]
[1728144419042,2.313,2412.9,2412.7,1.95441]
[1728144421544,2.313,2412.9,2412.5,1.81760453]
[1728144421545,9.05163744,2412.9,2412.3,0.9391]
[1728144421739,9.05163744,2412.9,2412.3,0.8431]
[1728144421740,1.49,2412.6,2412.3,0.8431]
[1728144421940,1.49,2412.6,2412.4,4.58248749]
[1728144421941,0.8152,2412.5,2412.4,4.58248749]
[1728144425448,0.29017,2412.2,2412.1,0.096]
[1728144425646,1.49,2412.2,2411.9,1.6216]
[1728144425946,1.49,2412.2,2412.0,0.7833]
[1728144425947,0.29019,2412.1,2412.0,0.7833]
[1728144428543,0.2902,2412.0,2411.9,1.6216]
[1728144428743,2.2725,2412.0,2411.9,1.6216]
[1728144428947,2.5627,2412.0,2411.9,1.6216]
[1728144429151,2.2725,2412.0,2411.9,1.6216]
[1728144429539,6.7091,2412.0,2411.9,1.6216]
[1728144429744,0.29022,2411.8,2411.7,0.801]
[1728144430047,0.29022,2411.8,2411.5,1.6244]
[1728144430048,1.78022,2411.8,2411.5,1.6244]
[1728144430247,1.49,2411.6,2411.5,1.6244]
[1728144432942,5.6364,2411.6,2411.3,0.29027]
[1728144433148,1.07274,2411.7,2411.3,1.90807]
[1728144433149,1.49,2411.5,2411.3,1.90807]
[1728144434650,1.49,2411.5,2411.3,1.6178]
[1728144434854,0.8509,2411.4,2411.3,1.6178]
[1728144437551,0.8509,2411.4,2411.3,1.90808]
[1728144437756,0.8509,2411.4,2411.3,1.6178]
[1728144437952,3.2078,2411.6,2411.4,0.29027]
[1728144438559,4.6978,2411.6,2411.3,6.33354666]
[1728144439154,4.6978,2411.6,2411.3,6.62382666]
[1728144439658,1.49,2411.5,2411.3,6.62382666]
[1728144440347,1.49,2411.5,2411.3,1.90808]
[1728144440550,1.49,2411.5,2411.0,0.096]
[1728144440748,3.2078,2411.6,2411.0,2.4553]
[1728144440749,4.6978,2411.3,2411.0,2.4553]
[1728144441053,1.49,2411.1,2411.0,1.6398]
[1728144441470,2.2704,2411.1,2411.0,1.6398]
[1728144448355,5.4782,2411.1,2411.0,1.6398]
[1728144448755,2.2704,2411.1,2411.0,1.6398]
[1728144449151,3.2078,2411.1,2411.0,1.6398]
[1728144449357,3.2078,2411.1,2411.0,1.93012]
[1728144450653,3.2078,2411.1,2411.0,12.2254979]
[1728144450858,3.2445,2411.4,2411.0,11.9351779]
[1728144451061,3.2445,2411.4,2411.3,0.29028]
[1728144451461,3.2445,2411.4,2411.3,4.9484579]
[1728144454158,0.0367,2411.4,2411.3,4.9484579]
[1728144460068,0.0367,2411.4,2411.3,5.7751579]
[1728144460863,0.0367,2411.4,2411.3,7.2651579]
[1728144461059,0.0367,2411.4,2411.3,5.7751579]
[1728144461259,5.5176,2411.7,2411.4,0.29026]
[1728144461458,5.5176,2411.7,2411.3,5.4848779]
[1728144461459,0.29024,2411.6,2411.5,1.6318]
[1728144461671,1.78024,2411.6,2411.3,5.4848779]
[1728144461869,0.29026,2411.5,2411.3,1.6602]
[1728144462061,0.29026,2411.5,2411.4,4.46957146]
[1728144462566,2.3268,2411.6,2411.4,4.46957146]
[1728144462567,2.61705,2411.6,2411.4,4.46957146]
[1728144465672,3.2078,2411.5,2411.4,4.46957146]
[1728144466773,3.2078,2411.5,2411.3,1.95048]
[1728144468076,2.61705,2411.6,2411.3,1.95048]
[1728144468377,3.2078,2411.5,2411.3,1.95048]
[1728144469870,3.7007206,2411.6,2411.3,1.95048]
[1728144470071,3.2078,2411.5,2411.3,1.95048]
[1728144470477,4.2914706,2411.5,2411.3,1.95048]
[1728144470676,4.2914706,2411.5,2411.3,1.6602]
[1728144470877,4.2914706,2411.5,2411.3,1.95048]
[1728144471375,1.0836706,2411.4,2411.3,1.95048]
[1728144474674,1.62832541,2411.4,2411.3,1.95048]
[1728144474882,4.83612541,2411.5,2411.3,1.95048]
[1728144475076,4.83612541,2411.5,2411.4,0.29027]
[1728144475276,3.2078,2411.5,2411.4,0.29027]
[1728144475777,4.49977717,2411.6,2411.4,0.29027]
[1728144476082,3.2078,2411.5,2411.3,1.95047]
[1728144476288,3.11971751,2411.4,2411.3,1.95047]
[1728144476580,3.11971751,2411.4,2411.3,2.46091967]
[1728144477482,1.62971751,2411.4,2411.3,1.95047]
[1728144477683,1.62971751,2411.4,2411.3,2.46096536]
[1728144480285,3.23351751,2411.4,2411.3,2.46096536]
[1728144480675,3.23351751,2411.4,2411.3,1.95047]
[1728144480871,3.23351751,2411.4,2411.3,2.46102667]
[1728144481276,3.23351751,2411.4,2411.3,2.9848292]
[1728144481676,1.62971751,2411.4,2411.3,7.25041033]
[1728144481876,1.62971751,2411.4,2411.3,7.7742145]
[1728144482979,1.62971751,2411.4,2411.3,7.25041033]
[1728144483171,1.62971751,2411.4,2411.3,7.77416363]
[1728144483382,2.71640969,2411.4,2411.3,7.77416363]
[1728144483582,1.08669218,2411.4,2411.3,7.77416363]
[1728144485981,1.08669218,2411.4,2411.3,7.7741136]
[1728144486380,1.08669218,2411.4,2411.3,6.73985762]
[1728144486578,1.08669218,2411.4,2411.3,7.26358218]
[1728144486886,1.12339218,2411.4,2411.3,7.77403539]
[1728144487679,1.66641751,2411.4,2411.3,7.77403539]
[1728144490380,1.66641751,2411.4,2411.3,7.25031083]
[1728144490595,0.0367,2411.4,2411.3,7.48396199]
[1728144490889,0.0367,2411.4,2411.3,6.96023184]
[1728144491494,0.0367,2411.4,2411.3,7.48427417]
[1728144491984,2.20967717,2411.4,2411.3,6.96023184]
[1728144493384,2.20967717,2411.4,2411.3,7.48450313]
[1728144493593,5.41747717,2411.4,2411.3,6.96023184]
[1728144493789,5.41747717,2411.4,2411.3,7.48485134]
[1728144494379,5.41747717,2411.4,2411.1,2.70521727]
[1728144494380,9.17197,2411.4,2411.1,2.70521727]
[1728144494685,1.49,2411.2,2411.0,1.86299294]
[1728144494884,1.49,2411.2,2410.9,2.66489294]
[1728144494885,3.2078,2411.1,2410.9,2.66489294]
[1728144495184,2.17609538,2411.0,2410.9,2.66489294]
[1728144495385,3.66469538,2411.0,2410.9,4.51934792]
[1728144495580,5.15469538,2411.0,2410.9,3.70106281]
[1728144496384,2.17609538,2411.0,2410.9,3.99139281]
[1728144496685,1.63164587,2411.0,2410.9,10.59254742]
[1728144496989,1.63164587,2411.0,2410.9,10.59254145]
[1728144497684,1.63164587,2411.0,2410.9,9.37323843]
[1728144499882,1.63164587,2411.0,2410.9,9.08290843]
[1728144500185,3.23794587,2411.0,2410.9,7.18617279]
[1728144500487,3.23794587,2411.0,2410.9,6.95177613]
[1728144500692,3.23794587,2411.0,2410.9,6.96506942]
[1728144500888,3.23794587,2411.0,2410.9,7.4759838]
[1728144501291,3.23794587,2411.0,2410.9,7.98690111]
[1728144503296,1.08690299,2411.0,2410.9,14.70329405]
[1728144503597,1.63164587,2411.3,2411.1,0.29029]
[1728144503785,1.63164587,2411.3,2411.2,3.60481443]
[1728144504097,1.63164587,2411.3,2411.2,10.33762732]
[1728144505697,3.2078,2411.4,2411.2,9.81341289]
[1728144505698,5.38389538,2411.4,2411.2,9.81341289]
[1728144505899,5.38389538,2411.4,2411.2,9.30249558]
[1728144506996,3.66609538,2411.3,2411.0,1.37706148]
[1728144507191,1.63040373,2411.2,2411.1,2.14807545]
[1728144507403,3.12540373,2411.2,2411.1,7.31474873]
[1728144507992,4.61540373,2411.2,2411.1,0.51078643]
[1728144508196,8.28439538,2411.2,2411.0,3.0252]
[1728144508392,4.83819236,2411.1,2411.0,1.4968]
[1728144508591,4.83819236,2411.1,2411.0,2.00759964]
[1728144509001,3.2078,2411.1,2411.0,1.4968]
[1728144509498,5.38389538,2411.1,2410.8,2.71075148]
[1728144509702,1.63009643,2411.0,2410.9,0.5107736]
[1728144510003,1.63009643,2411.0,2410.9,4.92666207]
[1728144510298,3.41041643,2411.0,2410.9,0.5107736]
[1728144510510,5.638,2411.0,2410.7,1.6264]
[1728144510799,3.74179602,2410.9,2410.7,1.6264]
[1728144511000,1.62963458,2410.8,2410.7,1.6264]
[1728144511201,3.11963458,2410.8,2410.7,1.6264]
[1728144511405,6.32703722,2410.8,2410.7,1.6264]
[1728144511595,4.6978,2410.8,2410.6,0.29035]
[1728144511901,1.62922695,2410.7,2410.6,0.29035]
[1728144512491,1.49,2410.7,2410.6,0.29035]
[1728144512707,1.49,2410.7,2410.5,3.0828]
[1728144513002,1.5111,2410.6,2410.5,3.37318]
[1728144513206,1.5111,2410.6,2410.5,3.88371695]
[1728144513805,1.5111,2410.6,2410.5,3.88361504]
[1728144514013,1.5111,2410.6,2410.5,0.51043504]
[1728144514296,1.5111,2410.6,2410.4,3.2078]
[1728144514505,1.5111,2410.6,2410.4,4.7907]
[1728144514998,1.49,2410.5,2410.4,4.7907]
[1728144515509,1.49,2410.5,2410.4,3.2078]
[1728144515510,1.78038,2410.5,2410.4,3.2078]
[1728144515695,1.49,2410.5,2410.4,3.2078]
[1728144516002,8.8466,2410.5,2410.2,3.42851]
[1728144516211,4.6978,2410.5,2410.2,3.42851]
[1728144516411,4.6978,2410.5,2410.3,0.2904]
[1728144516704,4.6978,2410.5,2410.3,4.64488131]
[1728144516903,1.5111,2410.6,2410.4,0.29039]
[1728144517094,1.5111,2410.6,2410.5,1.4895]
[1728144517300,1.5111,2410.6,2410.5,3.36938]
[1728144518396,3.11922695,2410.7,2410.5,3.36938]
[1728144518702,6.44472695,2410.8,2410.6,1.6105]
[1728144518907,3.2078,2410.8,2410.7,0.29035]
[1728144521009,4.6978,2410.8,2410.7,0.29035]
[1728144522600,4.6978,2410.8,2410.6,6.34236714]
[1728144522800,4.6978,2410.8,2410.6,6.63272714]
[1728144523610,4.6978,2410.8,2410.7,0.29035]
[1728144524905,1.49,2410.8,2410.7,0.29035]
[1728144528017,1.49,2410.8,2410.6,6.63272714]
[1728144529203,1.49,2410.8,2410.6,6.34236714]
[1728144529419,1.49,2410.8,2410.6,6.63272714]
[1728144532515,1.49,2410.7,2410.6,1.90086]
[1728144532715,8.25338695,2410.7,2410.3,0.29039]
[1728144533021,1.49,2410.4,2410.3,0.29039]
[1728144533513,1.49,2410.4,2410.3,4.83624526]
[1728144534111,3.1125,2410.6,2410.3,4.83624526]
[1728144535617,3.40287,2410.6,2410.3,4.83624526]
[1728144536219,3.1125,2410.6,2410.3,4.83624526]
[1728144536727,3.40287,2410.6,2410.3,4.83624526]
[1728144537018,3.1125,2410.6,2410.3,4.83624526]
[1728144539029,1.6225,2410.6,2410.3,4.54585526]
[1728144539236,4.83702695,2410.7,2410.3,6.03585526]
[1728144539430,4.83702695,2410.7,2410.6,0.29036]
[1728144539737,3.2078,2410.7,2410.6,0.29036]
[1728144540035,4.83702695,2410.7,2410.6,0.29036]
[1728144540235,6.32702695,2410.7,2410.3,5.63260674]
[1728144540440,1.5907,2410.6,2410.5,1.5845]
[1728144540638,1.5907,2410.6,2410.5,6.25576119]
[1728144541528,1.5907,2410.6,2410.5,5.96538119]
[1728144544036,4.83702695,2410.7,2410.5,5.96538119]
[1728144544236,4.83702695,2410.7,2410.6,0.29036]
[1728144546337,1.62922695,2410.7,2410.6,0.29036]
[1728144547138,4.83702695,2410.8,2410.6,0.29036]
[1728144547536,3.2078,2410.8,2410.6,0.29036]
[1728144548439,3.2078,2410.8,2410.7,4.76332111]
[1728144548641,3.21292695,2410.9,2410.7,4.47297111]
[1728144548841,3.21292695,2410.9,2410.6,4.76333111]
[1728144549134,3.21292695,2410.9,2410.6,0.29036]
[1728144549440,1.62922695,2410.8,2410.7,4.60457304]
[1728144549936,1.62922695,2410.8,2410.7,4.89491304]
[1728144550243,1.62922695,2410.8,2410.7,4.60457304]
[1728144550444,1.62922695,2410.8,2410.7,4.89492304]
[1728144552433,1.62922695,2410.8,2410.7,5.40569343]
[1728144553838,3.75659602,2410.9,2410.7,5.40569343]
[1728144554143,1.63050458,2410.8,2410.7,5.40581744]
[1728144554340,3.75659602,2410.9,2410.7,5.93001422]
[1728144554636,3.75659602,2410.9,2410.7,4.89492304]
[1728144554843,3.75659602,2410.9,2410.8,1.6247]
[1728144555442,3.75659602,2410.9,2410.8,2.42607557]
[1728144555641,2.17289602,2410.9,2410.8,2.42607557]
[1728144555838,2.17289602,2411.0,2410.9,0.29033]
[1728144556041,5.38069602,2411.1,2410.9,1.32568352]
[1728144556241,5.38069602,2411.1,2411.0,0.80135557]
[1728144556437,5.38069602,2411.1,2411.0,0.51103557]
[1728144556941,5.38069602,2411.1,2411.0,0.80135557]
[1728144557343,5.38069602,2411.1,2411.0,0.29032]
[1728144557736,5.38069602,2411.1,2411.0,0.80127621]
[1728144557942,5.38069602,2411.1,2411.0,0.51095621]
[1728144558142,5.38069602,2411.1,2411.0,0.29032]
[1728144563052,6.87069602,2411.1,2411.0,0.29032]
[1728144564357,6.87069602,2411.1,2410.6,1.37711148]
[1728144564358,0.29033,2410.9,2410.6,1.37711148]
[1728144564660,0.29033,2410.9,2410.6,0.29036]
[1728144564661,6.8699352,2410.7,2410.6,0.29036]
[1728144566569,0.29037,2410.6,2410.4,3.2438]
[1728144566864,0.29037,2410.6,2410.3,1.575]
[1728144566865,1.49,2410.5,2410.3,1.575]
[1728144567054,4.83654388,2410.4,2410.3,1.575]
[1728144567559,4.83654388,2410.4,2410.3,7.45468842]
[1728144567560,3.2078,2410.4,2410.3,7.45468842]
[1728144568560,3.2078,2410.4,2410.3,14.99742683]
[1728144568761,3.2078,2410.4,2410.3,17.59814297]
[1728144568964,3.2078,2410.4,2410.3,28.95121384]
[1728144569171,3.2078,2410.4,2410.3,27.32108662]
[1728144569569,3.2078,2410.4,2410.3,29.48976891]
[1728144569766,4.83654388,2410.8,2410.3,27.87125615]
[1728144570065,4.83654388,2410.8,2410.6,0.29036]
[1728144570269,4.83654388,2410.8,2410.7,1.593]
[1728144570461,4.83654388,2410.8,2410.7,6.22109055]
[1728144571359,1.62874388,2410.8,2410.7,6.22109055]
[1728144571558,1.62874388,2410.8,2410.7,1.593]
[1728144571755,3.28834388,2410.8,2410.5,1.08690322]
[1728144571954,3.11874388,2410.7,2410.6,0.5107336]
[1728144572460,3.11874388,2410.7,2410.4,2.67350322]
[1728144572461,3.40909388,2410.7,2410.4,2.67350322]
[1728144572773,3.40909388,2410.7,2410.5,0.51075806]
[1728144572774,3.16534388,2410.6,2410.5,0.51075806]
[1728144573067,3.16534388,2410.6,2410.4,1.37729322]
[1728144573270,1.5415,2410.5,2410.4,1.37729322]
[1728144573469,1.5415,2410.5,2410.4,0.52406593]
[1728144573671,1.5415,2410.5,2410.4,1.61096915]
[1728144573867,1.5415,2410.5,2410.4,2.12173005]
[1728144574265,1.5415,2410.5,2410.4,1.03482683]
[1728144574864,1.5415,2410.5,2410.4,2.12173005]
[1728144575066,1.5415,2410.5,2410.4,1.03482683]
[1728144575467,1.5415,2410.5,2410.4,2.12173005]
[1728144575765,1.5415,2410.5,2410.4,0.52405656]
[1728144576273,1.5415,2410.5,2410.4,2.4121]
[1728144576469,1.5415,2410.5,2410.4,0.29039]
[1728144576672,1.5415,2410.5,2410.4,0.81443456]
[1728144576977,1.5415,2410.5,2410.4,1.32517428]
[1728144577274,1.5415,2410.5,2410.4,1.83591663]
[1728144577872,1.5415,2410.5,2410.4,6.64407419]
[1728144578170,7.41784301,2410.9,2410.4,6.64407419]
[1728144578171,1.62874388,2410.7,2410.6,0.29036]
[1728144578372,1.62874388,2410.7,2410.6,0.80110235]
[1728144578560,1.62874388,2410.8,2410.6,5.52376703]
[1728144578760,1.62874388,2410.8,2410.7,1.79545]
[1728144579065,1.62874388,2410.8,2410.7,6.26822625]
[1728144579464,1.62874388,2410.9,2410.7,7.30294923]
[1728144579669,1.62874388,2410.9,2410.8,0.29034]
[1728144580374,1.62874388,2410.9,2410.8,0.80104227]
[1728144580573,1.62874388,2410.9,2410.8,0.29034]
[1728144580878,1.62874388,2410.9,2410.8,0.80104644]
[1728144582473,1.62874388,2411.0,2410.9,0.29033]
[1728144582673,0.0367,2411.1,2411.0,0.29032]
[1728144582674,1.66544388,2411.1,2411.0,0.29032]
[1728144582974,1.66544388,2411.1,2411.0,5.91307386]
[1728144582975,0.0367,2411.1,2411.0,5.91307386]
[1728144583370,0.0367,2411.1,2411.0,13.26807386]
[1728144583565,0.0367,2411.1,2411.0,14.35497708]
[1728144583778,0.0367,2411.1,2411.0,16.39189081]
[1728144584274,0.0367,2411.1,2411.0,15.171969]
[1728144585163,0.0367,2411.1,2411.0,14.35497708]
[1728144586379,0.0367,2411.1,2411.0,13.32030304]
[1728144586673,0.0367,2411.1,2411.0,13.84394946]
[1728144586870,0.0367,2411.1,2411.0,14.35432237]
[1728144587071,0.0367,2411.1,2411.0,14.86469514]
[1728144587785,4.77834388,2411.4,2411.0,14.86469514]
[1728144587786,4.77834388,2411.4,2411.1,0.2903]
[1728144587965,4.77834388,2411.4,2411.2,1.6152]
[1728144588271,4.77834388,2411.4,2411.2,6.12512707]
[1728144589069,6.55861388,2411.4,2411.2,4.50992707]
[1728144589770,5.06861388,2411.4,2411.2,4.50992707]
[1728144589969,6.55861388,2411.4,2411.2,4.50992707]
[1728144591067,6.26834388,2411.4,2411.2,4.50992707]
[1728144592273,6.55862388,2411.4,2411.2,4.50992707]
[1728144593379,6.26834388,2411.4,2411.2,4.80021707]
[1728144596381,4.77834388,2411.4,2411.2,4.50992707]
[1728144596580,3.1496,2411.4,2411.2,4.80021707]
[1728144596781,4.77834388,2411.4,2411.2,4.80021707]
[1728144596980,3.1496,2411.4,2411.2,4.80021707]
[1728144597283,3.1496,2411.4,2411.2,4.50992707]
[1728144597478,3.1496,2411.4,2411.3,0.29028]
[1728144597781,3.1496,2411.4,2411.3,1.5411]
[1728144598379,3.1496,2411.4,2411.3,1.83138]
[1728144598681,3.1496,2411.4,2411.3,1.5411]
[1728144599284,1.5445,2411.4,2411.3,3.32138]
[1728144599484,3.16144388,2411.5,2411.3,3.32138]
[1728144599485,1.5327,2411.5,2411.4,0.29027]
[1728144599680,1.5708,2411.6,2411.5,0.29026]
[1728144600480,1.62874388,2411.8,2411.6,0.29024]
[1728144600782,1.5708,2411.8,2411.7,1.5062]
[1728144601779,1.86102,2411.8,2411.7,1.5062]
[1728144601973,1.5708,2411.8,2411.7,1.5062]
[1728144602178,1.86102,2411.8,2411.5,1.78026]
[1728144602391,1.5708,2411.8,2411.5,3.42276]
[1728144602579,1.86102,2411.8,2411.6,4.59860329]
[1728144602784,0.29023,2411.7,2411.6,4.59860329]
[1728144603088,3.0608,2411.8,2411.6,4.59860329]
[1728144603384,3.35103,2411.8,2411.6,4.59860329]
[1728144604187,0.29023,2411.7,2411.6,4.59860329]
[1728144604483,3.0608,2411.8,2411.6,4.59860329]
[1728144604683,0.29023,2411.7,2411.6,4.59860329]
[1728144605981,4.68954388,2411.8,2411.6,4.59860329]
[1728144606177,0.29023,2411.7,2411.6,4.59860329]
[1728144606381,4.97977388,2411.8,2411.6,4.59860329]
[1728144606587,4.97977388,2411.8,2411.6,4.88884329]
[1728144612489,0.0367,2411.7,2411.6,4.88884329]
[1728144619295,1.66544388,2411.7,2411.6,4.88884329]
[1728144623197,0.0367,2411.7,2411.6,4.88884329]
[1728144624900,2.2088352,2411.7,2411.6,4.88884329]
[1728144625908,0.0367,2411.7,2411.6,6.37884329]
[1728144626101,1.66313978,2411.7,2411.6,9.94321877]
[1728144626303,1.66313978,2411.7,2411.6,11.46191877]
[1728144626699,1.66313978,2411.7,2411.6,10.95134329]
[1728144626909,1.66313978,2411.7,2411.6,11.46189738]
[1728144627996,1.66313978,2411.7,2411.6,17.21910173]
[1728144627997,1.12134122,2411.7,2411.6,17.21910173]
[1728144628196,1.12134122,2411.7,2411.6,20.63776634]
[1728144628197,0.0367,2411.7,2411.6,20.63776634]
[1728144630207,1.08464122,2411.9,2411.8,0.29022]
[1728144630505,1.08464122,2411.9,2411.8,7.53287804]
[1728144631209,1.08464122,2411.9,2411.8,7.00897691]
[1728144632308,1.08464122,2412.0,2411.8,7.00897691]
[1728144632508,1.08464122,2412.0,2411.8,6.20820282]
[1728144632708,4.85073978,2411.9,2411.6,4.5725]
[1728144632906,4.85073978,2411.9,2411.7,0.51037578]
[1728144632907,1.08428295,2411.8,2411.7,0.51037578]
[1728144633106,1.08428295,2411.8,2411.7,6.19167757]
[1728144634407,1.08428295,2411.8,2411.7,6.48190757]
[1728144635409,1.08428295,2411.8,2411.7,4.70167757]
[1728144635607,1.08428295,2411.8,2411.6,4.86274]
[1728144636112,1.08428295,2411.8,2411.6,4.5725]
[1728144636309,1.08428295,2411.7,2411.6,4.86274]
[1728144636804,1.08428295,2411.7,2411.6,5.37312503]
[1728144641702,1.08428295,2411.7,2411.6,5.08288503]
[1728144641902,1.08428295,2411.7,2411.6,0.51038503]
[1728144641903,6.06306978,2411.7,2411.6,0.51038503]
[1728144642102,6.06306978,2411.7,2411.3,1.6468]
[1728144642103,0.29025,2411.6,2411.3,1.6468]
[1728144642307,1.08452804,2411.4,2411.3,1.6468]
[1728144642512,1.08452804,2411.4,2411.3,2.96833199]
[1728144642718,1.08452804,2411.4,2411.3,7.68316179]
[1728144644803,1.08452804,2411.4,2411.3,8.76947913]
[1728144645205,1.08452804,2411.4,2411.3,8.2488608]
[1728144645408,1.08452804,2411.4,2411.3,7.67326261]
[1728144645614,1.08452804,2411.4,2411.3,7.68334101]
[1728144645805,1.08452804,2411.4,2411.3,9.28038364]
[1728144647100,1.08447428,2411.4,2411.3,3.18897733]
[1728144647305,1.08447428,2411.4,2411.3,3.47925733]
[1728144647707,1.08447428,2411.4,2411.3,4.56557467]
[1728144648409,1.08447428,2411.4,2411.3,4.05485552]
[1728144648909,1.08447428,2411.4,2411.3,2.96853818]
[1728144650011,1.08447428,2411.4,2411.3,2.67825818]
[1728144651205,1.08447428,2411.4,2411.3,2.16748902]
[1728144651610,1.08447428,2411.4,2411.3,2.67819161]
[1728144652213,1.62679206,2411.4,2411.3,1.6468]
[1728144652404,1.62679206,2411.4,2411.2,3.35869]
[1728144652610,2.71753118,2411.3,2411.2,3.35869]
[1728144652810,2.71753118,2411.3,2411.2,4.39006992]
[1728144653314,2.71753118,2411.3,2411.2,3.86938532]
[1728144653509,2.71753118,2411.3,2411.2,4.39004713]
[1728144654015,2.71753118,2411.3,2411.2,4.39004693]
[1728144654210,3.25999206,2411.3,2411.2,3.86938532]
[1728144654416,3.25999206,2411.3,2411.2,3.86935646]
[1728144654611,3.25999206,2411.3,2411.2,3.35869]
[1728144659519,1.6332,2411.3,2411.2,3.35869]
[1728144659722,3.25999206,2411.3,2411.2,3.35869]
[1728144660323,2.7174008,2411.3,2411.2,3.35869]
[1728144660822,3.25999206,2411.3,2411.1,1.9432]
[1728144661119,3.25999206,2411.3,2411.1,3.4332]
[1728144661120,1.08420255,2411.2,2411.1,3.4332]
[1728144661316,1.08420255,2411.2,2411.1,3.94365153]
[1728144661508,1.08420255,2411.2,2411.1,3.4332]
[1728144661712,1.08420255,2411.2,2411.1,3.1429]
[1728144661921,1.62679206,2411.2,2411.1,3.1429]
[1728144662315,1.62679206,2411.2,2411.1,3.4332]
[1728144662511,1.6332,2411.3,2411.1,3.4332]
[1728144662512,3.25999206,2411.3,2411.1,3.1429]
[1728144662822,3.25999206,2411.3,2411.1,3.4332]
[1728144663524,1.08395642,2411.2,2411.1,3.4332]
[1728144664022,1.08387481,2411.2,2411.1,3.4332]